{"text_format":"1","workbook":"xlsx","n_sheets":1,"sheets":["К.П. ИЮНЬ 2020  "],"not_rendered":{"charts":0,"images":0,"macros":1,"external_links":5,"defined_names":38,"comments":0,"pivot_tables":0},"unopened":[],"bounds":{"document_bytes":16777216,"sheet_cells":100000,"rows_first":2000,"rows_last":500,"rows_between":2000,"halvings":0,"cell_chars":16384,"cell_head_chars":4096},"cells_cut":0,"cells_raw":0,"read":"whole","date_system":"1900"}

{"sheet":"К.П. ИЮНЬ 2020  ","index":0,"n_rows":37,"n_cols":257,"rows_kept":37,"cut":false,"hidden":false,"merged":[[31,121,33,205],[36,89,39,164],[25,208,26,213],[25,214,26,220],[25,232,26,232],[25,172,26,177],[25,178,26,183],[25,184,26,189],[25,190,26,195],[25,196,26,201],[25,202,26,207],[25,136,26,141],[25,142,26,147],[25,148,26,153],[25,154,26,159],[25,160,26,165],[25,166,26,171],[25,100,26,105],[25,106,26,111],[25,112,26,117],[25,118,26,123],[25,124,26,129],[25,130,26,135],[25,64,26,69],[25,70,26,75],[25,76,26,81],[25,82,26,87],[25,88,26,93],[25,94,26,99],[24,202,24,207],[24,208,24,213],[24,214,24,220],[25,24,26,27],[25,28,26,33],[25,34,26,39],[25,40,26,45],[25,46,26,51],[25,52,26,57],[25,58,26,63],[24,166,24,171],[24,172,24,177],[24,178,24,183],[24,184,24,189],[24,190,24,195],[24,196,24,201],[24,130,24,135],[24,136,24,141],[24,142,24,147],[24,148,24,153],[24,154,24,159],[24,160,24,165],[24,94,24,99],[24,100,24,105],[24,106,24,111],[24,112,24,117],[24,118,24,123],[24,124,24,129],[24,58,24,63],[24,64,24,69],[24,70,24,75],[24,76,24,81],[24,82,24,87],[24,88,24,93],[24,24,24,27],[24,28,24,33],[24,34,24,39],[24,40,24,45],[24,46,24,51],[24,52,24,57],[23,178,23,183],[23,184,23,189],[23,190,23,195],[23,196,23,201],[23,202,23,207],[23,208,23,213],[23,142,23,147],[23,148,23,153],[23,154,23,159],[23,160,23,165],[23,166,23,171],[23,172,23,177],[23,106,23,111],[23,112,23,117],[23,118,23,123],[23,124,23,129],[23,130,23,135],[23,136,23,141],[23,70,23,75],[23,76,23,81],[23,82,23,87],[23,88,23,93],[23,94,23,99],[23,100,23,105],[22,208,22,213],[22,214,23,220],[23,24,23,27],[23,28,23,33],[23,34,23,39],[23,40,23,45],[23,46,23,51],[23,52,23,57],[23,58,23,63],[23,64,23,69],[22,172,22,177],[22,178,22,183],[22,184,22,189],[22,190,22,195],[22,196,22,201],[22,202,22,207],[22,136,22,141],[22,142,22,147],[22,148,22,153],[22,154,22,159],[22,160,22,165],[22,166,22,171],[22,100,22,105],[22,106,22,111],[22,112,22,117],[22,118,22,123],[22,124,22,129],[22,130,22,135],[22,64,22,69],[22,70,22,75],[22,76,22,81],[22,82,22,87],[22,88,22,93],[22,94,22,99],[21,196,21,201],[21,202,21,207],[21,208,21,213],[21,214,21,220],[22,28,22,33],[22,34,22,39],[22,40,22,45],[22,46,22,51],[22,52,22,57],[22,58,22,63],[21,160,21,165],[21,166,21,171],[21,172,21,177],[21,178,21,183],[21,184,21,189],[21,190,21,195],[21,124,21,129],[21,130,21,135],[21,136,21,141],[21,142,21,147],[21,148,21,153],[21,154,21,159],[21,88,21,93],[21,94,21,99],[21,100,21,105],[21,106,21,111],[21,112,21,117],[21,118,21,123],[21,52,21,57],[21,58,21,63],[21,64,21,69],[21,70,21,75],[21,76,21,81],[21,82,21,87],[21,1,26,4],[21,5,26,22],[21,24,22,27],[21,28,21,33],[21,34,21,39],[21,40,21,45],[21,46,21,51],[20,196,20,201],[20,202,20,207],[20,208,20,213],[20,214,20,220],[20,160,20,165],[20,166,20,171],[20,172,20,177],[20,178,20,183],[20,184,20,189],[20,190,20,195],[20,124,20,129],[20,130,20,135],[20,136,20,141],[20,142,20,147],[20,148,20,153],[20,154,20,159],[20,88,20,93],[20,94,20,99],[20,100,20,105],[20,106,20,111],[20,112,20,117],[20,118,20,123],[20,52,20,57],[20,58,20,63],[20,64,20,69],[20,70,20,75],[20,76,20,81],[20,82,20,87],[20,5,20,21],[20,24,20,27],[20,28,20,33],[20,34,20,39],[20,40,20,45],[20,46,20,51],[18,208,19,213],[18,214,18,232],[18,233,18,234],[18,250,18,254],[19,214,19,228],[19,250,19,254],[18,172,19,177],[18,178,19,183],[18,184,19,189],[18,190,19,195],[18,196,19,201],[18,202,19,207],[18,136,19,141],[18,142,19,147],[18,148,19,153],[18,154,19,159],[18,160,19,165],[18,166,19,171],[18,100,19,105],[18,106,19,111],[18,112,19,117],[18,118,19,123],[18,124,19,129],[18,130,19,135],[18,64,19,69],[18,70,19,75],[18,76,19,81],[18,82,19,87],[18,88,19,93],[18,94,19,99],[17,250,17,254],[18,0,19,4],[18,5,19,22],[18,23,19,27],[18,28,19,33],[18,34,19,39],[18,40,19,45],[18,46,19,51],[18,52,19,57],[18,58,19,63],[13,250,13,254],[14,0,14,227],[14,250,14,254],[15,0,15,227],[15,250,15,254],[16,0,16,227],[16,250,16,254],[4,241,4,242],[7,0,7,76],[11,210,11,227],[11,235,12,235],[12,190,12,198],[12,200,12,209],[12,211,12,219],[0,241,0,242],[1,0,1,2],[1,241,1,242],[2,0,2,2],[2,241,2,242],[3,0,3,2],[3,241,3,242]]}
[null,null,null,null,null,null,null,null,null,null,null,null,null,null,null,null,null,null,null,null,null,null,null,null,null,null,null,null,null,null,null,null,null,null,null,null,null,null,null,null,null,null,null,null,null,null,null,null,null,null,null,null,null,null,null,null,null,null,null,null,null,null,null,null,null,null,null,null,null,null,null,null,null,null,null,null,null,null,null,null,null,null,null,null,null,null,null,null,null,null,null,null,null,null,null,null,null,null,null,null,null,null,null,null,null,null,null,null,null,null,null,null,null,null,null,null,null,null,null,null,null,null,null,null,null,null,null,null,null,null,null,null,null,null,null,null,null,null,null,null,null,null,null,null,null,null,null,null,null,null,null,null,null,null,null,null,null,null,null,null,null,null,null,null,null,null,null,null,null,null,null,null,null,null,null,null,null,null,null,null,null,null,null,null,null,null,null,null,null,null,null,null,null,null,null,null,null,null,null,null,null,null,null,null,null,null,null,null,null,null,null,null,null,null,null,null,null,null,null,null,null,null,null,null,null,null,null,null,null,null,null,null,null,null,null,null,null,null,null,null,null,"СЕГОДНЯ",null,null,null,null,null,null,null,null,"на январь 2020 года",null,1]
[null,null,null,null,null,null,null,null,null,null,null,null,null,null,null,null,null,null,null,null,null,null,null,null,null,null,null,null,null,null,null,null,null,null,null,null,null,null,null,null,null,null,null,null,null,null,null,null,null,null,null,null,null,null,null,null,null,null,null,null,null,null,null,null,null,null,null,null,null,null,null,null,null,null,null,null,null,null,null,null,null,null,null,null,null,null,null,null,null,null,null,null,null,null,null,null,null,null,null,null,null,null,null,null,null,null,null,null,null,null,null,null,null,null,null,null,null,null,null,null,null,null,null,null,null,null,null,null,null,null,null,null,null,null,null,null,null,null,null,null,null,null,null,null,null,null,null,null,null,null,null,null,null,null,null,null,null,null,null,null,null,null,null,null,null,null,null,null,null,null,null,null,null,null,null,null,null,null,null,null,null,null,null,null,null,null,null,null,null,null,null,null,null,null,null,null,null,null,null,null,null,null,null,null,null,null,null,null,null,null,null,null,null,null,null,null,null,null,null,null,null,null,null,null,null,null,null,null,null,null,null,null,null,null,null,null,null,null,null,null,null,{"$f":"TODAY()","v":"2020-05-11"},null,null,null,null,null,null,null,null,"на февраль 2020 года",null,2]
[null,null,null,null,null,null,null,null,null,null,null,null,null,null,null,null,null,null,null,null,null,null,null,null,null,null,null,null,null,null,null,null,null,null,null,null,null,null,null,null,null,null,null,null,null,null,null,null,null,null,null,null,null,null,null,null,null,null,null,null,null,null,null,null,null,null,null,null,null,null,null,null,null,null,null,null,null,null,null,null,null,null,null,null,null,null,null,null,null,null,null,null,null,null,null,null,null,null,null,null,null,null,null,null,null,null,null,null,null,null,null,null,null,null,null,null,null,null,null,null,null,null,null,null,null,null,null,null,null,null,null,null,null,null,null,null,null,null,null,null,null,null,null,null,null,null,null,null,null,null,null,null,null,null,null,null,null,null,null,null,null,null,null,null,null,null,null,null,null,null,null,null,null,null,null,null,null,null,null,null,null,null,null,null,null,null,null,null,null,null,null,null,null,null,null,null,null,null,null,null,null,null,null,null,null,null,null,null,null,null,null,null,null,null,null,null,null,null,null,null,null,null,null,null,null,null,null,null,null,null,null,null,null,null,null,null,null,null,null,null,null,{"$f":"TEXT(HZ2,\"дддд\")","v":"суббота"},null,null,null,null,null,null,null,null,"на март 2020 года",null,3]
[null,null,null,null,null,null,null,null,null,null,null,null,null,null,null,null,null,null,null,null,null,null,null,null,null,null,null,null,null,null,null,null,null,null,null,null,null,null,null,null,null,null,null,null,null,null,null,null,null,null,null,null,null,null,null,null,null,null,null,null,null,null,null,null,null,null,null,null,null,null,null,null,null,null,null,null,null,null,null,null,null,null,null,null,null,null,null,null,null,null,null,null,null,null,null,null,null,null,null,null,null,null,null,null,null,null,null,null,null,null,null,null,null,null,null,null,null,null,null,null,null,null,null,null,null,null,null,null,null,null,null,null,null,null,null,null,null,null,null,null,null,null,null,null,null,null,null,null,null,null,null,null,null,null,null,null,null,null,null,null,null,null,null,null,null,null,null,null,null,null,null,null,null,null,null,null,null,null,null,null,null,null,null,null,null,null,null,null,null,null,null,null,null,null,null,null,null,null,null,null,null,null,null,null,null,null,null,null,null,null,null,null,null,null,null,null,null,null,null,null,null,null,null,null,null,null,null,null,null,null,null,null,null,null,null,null,null,null,null,null,null,{"$f":"WEEKNUM(IH2,2)&\"-ая неделя\"","v":"20-ая неделя"},null,null,null,null,null,null,null,null,"на апрель 2020 года",null,4]
[null,null,null,null,null,null,null,null,{"$f":"IF(OR(#REF!<D3,AND(#REF!<D2,#REF!=D3)),$CN$19,IF(OR(#REF!>D3,AND(#REF!>D2,#REF!=D3)),0,DAY(A2)))","v":{"$error":"#REF!"}},null,null,null,null,null,null,null,null,null,null,null,null,null,null,null,null,null,null,null,null,null,null,null,null,null,null,null,null,null,null,null,null,null,null,null,null,null,null,null,null,null,null,null,null,null,null,null,null,null,null,null,null,null,null,null,null,null,null,null,null,null,null,null,null,null,null,null,null,null,null,null,null,null,null,null,null,null,null,null,null,null,null,null,null,null,null,null,null,null,null,null,null,null,null,null,null,null,null,null,null,null,null,null,null,null,null,null,null,null,null,null,null,null,null,null,null,null,null,null,null,null,null,null,null,null,null,null,null,null,null,null,null,null,null,null,null,null,null,null,null,null,null,null,null,null,null,null,null,null,null,null,null,null,null,null,null,null,null,null,null,null,null,null,null,null,null,null,null,null,null,null,null,null,null,null,null,null,null,null,null,null,null,null,null,null,null,null,null,null,null,null,null,null,null,null,null,null,null,null,null,null,null,null,null,null,null,null,null,null,null,null,null,null,null,null,null,null,null,null,null,null,null,null,null,null,null,null,null,null,null,null,null,{"$f":"IF(OR(#REF!<IC3,AND(#REF!<IC2,#REF!=IC3)),$CN$19,IF(OR(#REF!>IC3,AND(#REF!>IC2,#REF!=IC3)),0,DAY(HZ2)))","v":{"$error":"#REF!"}},null,null,null,null,null,null,null,null,"на май 2020 года",null,5]
[null,null,null,null,null,null,null,null,null,null,null,null,null,null,null,null,null,null,null,null,null,null,null,null,null,null,null,null,null,null,null,null,null,null,null,null,null,null,null,null,null,null,null,null,null,null,null,null,null,null,null,null,null,null,null,null,null,null,null,null,null,null,null,null,null,null,null,null,null,null,null,null,null,null,null,null,null,null,null,null,null,null,null,null,null,null,null,null,null,null,null,null,null,null,null,null,null,null,null,null,null,null,null,null,null,null,null,null,null,null,null,null,null,null,null,null,null,null,null,null,null,null,null,null,null,null,null,null,null,null,null,null,null,null,null,null,null,null,null,null,null,null,null,null,null,null,null,null,null,null,null,null,null,null,null,null,null,null,null,null,null,null,null,null,null,null,null,null,null,null,null,null,null,null,null,null,null,null,null,null,null,null,null,null,null,null,null,null,null,null,null,null,null,null,null,null,null,null,null,null,null,null,null,null,null,null,null,null,null,null,null,null,null,null,null,null,null,null,null,null,null,null,null,null,null,null,null,null,null,null,null,null,null,null,null,null,null,null,null,null,"время",null,null,null,null,null,null,null,null,null,"на июнь 2020 года",null,6]
[null,null,null,null,null,null,null,null,null,null,null,null,null,null,null,null,null,null,null,null,null,null,null,null,null,null,null,null,null,null,null,null,null,null,null,null,null,null,null,null,null,null,null,null,null,null,null,null,null,null,null,null,null,null,null,null,null,null,null,null,null,null,null,null,null,null,null,null,null,null,null,null,null,null,null,null,null,null,null,null,null,null,null,null,null,null,null,null,null,null,null,null,null,null,null,null,null,null,null,null,null,null,null,null,null,null,null,null,null,null,null,null,null,null,null,null,null,null,null,null,null,null,null,null,null,null,null,null,null,null,null,null,null,null,null,null,null,null,null,null,null,null,null,null,null,null,null,null,null,null,null,null,null,null,null,null,null,null,null,null,null,null,null,null,null,null,null,null,null,null,null,null,null,null,null,null,null,null,null,null,null,null,null,null,null,null,null,null,null,null,null,null,null,null,null,null,null,null,null,null,null,null,null,null,null,null,null,null,1,null,null,null,null,null,null,null,null,null,null,null,null,null,null,null,null,null,null,null,null,null,null,null,null,null,null,"количество дней месяца",null,null,30,null,null,null,null,null,null,null,null,null,null,null,"на июль 2020 года",null,7]
[null,null,null,null,null,null,null,null,null,null,null,null,null,null,null,null,null,null,null,null,null,null,null,null,null,null,null,null,null,null,null,null,null,null,null,null,null,null,null,null,null,null,null,null,null,null,null,null,null,null,null,null,null,null,null,null,null,null,null,null,null,null,null,null,null,null,null,null,null,null,null,null,null,null,null,null,null,null,null,null,null,null,null,null,null,null,null,null,null,null,null,null,null,null,null,null,null,null,null,null,null,null,null,null,null,null,null,null,null,null,null,null,null,null,null,null,null,null,null,null,null,null,null,null,null,null,null,null,null,null,null,null,null,null,null,null,null,null,null,null,null,null,null,null,null,null,null,null,null,null,null,null,null,null,null,null,null,null,null,null,null,null,null,null,null,null,null,null,null,null,null,null,null,null,null,null,null,null,null,null,null,null,null,null,null,null,null,null,null,null,null,null,null,null,null,null,null,null,null,null,null,null,null,null,null,null,null,null,2,null,null,null,null,null,null,null,null,null,null,null,null,null,null,null,null,null,null,null,null,null,null,null,null,null,null,"месяц",null,null,6,null,0,null,136,17,null,"я",null,null,null,null,"на август 2020 года",null,8]
[null,null,null,null,null,null,null,null,null,null,null,null,null,null,null,null,null,null,null,null,null,null,null,null,null,null,null,null,null,null,null,null,null,null,null,null,null,null,null,null,null,null,null,null,null,null,null,null,null,null,null,null,null,null,null,null,null,null,null,null,null,null,null,null,null,null,null,null,null,null,null,null,null,null,null,null,null,null,null,null,null,null,null,null,null,null,null,null,null,null,null,null,null,null,null,null,null,null,null,null,null,null,null,null,null,null,null,null,null,null,null,null,null,null,null,null,null,null,null,null,null,null,null,null,null,null,null,null,null,null,null,null,null,null,null,null,null,null,null,null,null,null,null,null,null,null,null,null,null,null,null,null,null,null,null,null,null,null,null,null,null,null,null,null,null,null,null,null,null,null,null,null,null,null,null,null,null,null,null,null,null,null,null,null,null,null,null,null,null,null,null,null,null,null,null,null,null,null,null,null,null,null,null,null,null,null,null,null,null,null,null,null,null,null,null,null,null,null,null,null,null,null,null,null,null,null,null,null,null,null,null,null,null,null,null,"год",null,null,{"$f":"YEAR(A17)","v":2020},null,2.0833333333333332E-2,null,152,19,null,"ф",null,null,null,null,"на сентябрь 2020 года",null,9]
[null,null,null,null,null,null,null,null,null,null,null,null,null,null,null,null,null,null,null,null,null,null,null,null,null,null,null,null,null,null,null,null,null,null,null,null,null,null,null,null,null,null,null,null,null,null,null,null,null,null,null,null,null,null,null,null,null,null,null,null,null,null,null,null,null,null,null,null,null,null,null,null,null,null,null,null,null,null,null,null,null,null,null,null,null,null,null,null,null,null,null,null,null,null,null,null,null,null,null,null,null,null,null,null,null,null,null,null,null,null,null,null,null,null,null,null,null,null,null,null,null,null,null,null,null,null,null,null,null,null,null,null,null,null,null,null,null,null,null,null,null,null,null,null,null,null,null,null,null,null,null,null,null,null,null,null,null,null,null,null,null,null,null,null,null,null,null,null,null,null,null,null,null,null,null,null,null,null,null,null,null,null,null,null,null,null,null,null,null,null,"УТВЕРЖДАЮ",null,null,null,null,null,null,null,null,null,null,null,null,null,null,null,null,null,null,null,null,null,null,null,null,null,null,null,null,null,null,null,null,null,null,null,null,null,null,null,null,null,null,null,null,null,null,null,null,null,6.25E-2,null,168,21,null,"м",null,null,null,null,"на октябрь 2020 года",null,10]
[null,null,null,null,null,null,null,null,null,null,null,null,null,null,null,null,null,null,null,null,null,null,null,null,null,null,null,null,null,null,null,null,null,null,null,null,null,null,null,null,null,null,null,null,null,null,null,null,null,null,null,null,null,null,null,null,null,null,null,null,null,null,null,null,null,null,null,null,null,null,null,null,null,null,null,null,null,null,null,null,null,null,null,null,null,null,null,null,null,null,null,null,null,null,null,null,null,null,null,null,null,null,null,null,null,null,null,null,null,null,null,null,null,null,null,null,null,null,null,null,null,null,null,null,null,null,null,null,null,null,null,null,null,null,null,null,null,null,null,null,null,null,null,null,null,null,null,null,null,null,null,null,null,null,null,null,null,null,null,null,null,null,null,null,null,null,null,null,null,null,null,null,null,null,null,null,null,null,null,null,null,null,null,null,null,null,null,null,null,null," ",null,null,null,null,null,null,null,null,null,null,null,null,null,null,null,null,null,null,null,null,null,null,null,null,null,null,null,null,null,null,null,null,null,null,null,null,null,null,null,null,null,null,null,null,"0бед",null,null,4.1666666666666664E-2,null,0.41666666666666669,null,175,22,null,"а",null,null,null,null,"на ноябрь 2020 года",null,11]
[null,null,null,null,null,null,null,null,null,null,null,null,null,null,null,null,null,null,null,null,null,null,null,null,null,null,null,null,null,null,null,null,null,null,null,null,null,null,null,null,null,null,null,null,null,null,null,null,null,null,null,null,null,null,null,null,null,null,null,null,null,null,null,null,null,null,null,null,null,null,null,null,null,null,null,null,null,null,null,null,null,null,null,null,null,null,null,null,null,null,null,null,null,null,null,null,null,null,null,null,null,null,null,null,null,null,null,null,null,null,null,null,null,null,null,null,null,null,null,null,null,null,null,null,null,null,null,null,null,null,null,null,null,null,null,null,null,null,null,null,null,null,null,null,null,null,null,null,null,null,null,null,null,null,null,null,null,null,null,null,null,null,null,null,null,null,null,null,null,null,null,null,null,null,null,null,null,null,null,null,null,null,null,null,null,null,null,null,null,null,"_______________С. А. Сорокина",null,null,null,null,null,null,null,null,null,null,null,null,null,null,null,null,null,null,null,null,null,null,null,null,null,null,null,null,null,null,null,null,null,null,null,null,null,null,null,null,null,null,null,null,null,null,null,null,null,0.45833333333333331,null,135,17,null,"май",null,null,null,null,"на декабрь 2020 года",null,12]
[null,null,null,null,null,null,null,null,null,null,null,null,null,null,null,null,null,null,null,null,null,null,null,null,null,null,null,null,null,null,null,null,null,null,null,null,null,null,null,null,null,null,null,null,null,null,null,null,null,null,null,null,null,null,null,null,null,null,null,null,null,null,null,null,null,null,null,null,null,null,null,null,null,null,null,null,null,null,null,null,null,null,null,null,null,null,null,null,null,null,null,null,null,null,null,null,null,null,null,null,null,null,null,null,null,null,null,null,null,null,null,null,null,null,null,null,null,null,null,null,null,null,null,null,null,null,null,null,null,null,null,null,null,null,null,null,null,null,null,null,null,null,null,null,null,null,null,null,null,null,null,null,null,null,null,null,null,null,null,null,null,null,null,null,null,null,null,null,null,null,null,null,null,null,null,null,null,null,null,null,null,null,null,null,null,null,null,null,null,null,"\"01\"",null,null,null,null,null,null,null,null,null," ",null,null,null,null,null,null,null,null,null,null,2020,null,null,null,null,null,null,null,null,null,null,null,null,null,null,null,null,null,null,null,null,null,null,null,null,null,null,null,null,0.125,null,167,21,null,"июнь"]
[null,null,null,null,null,null,null,null,null,null,null,null,null,null,null,null,null,null,null,null,null,null,null,null,null,null,null,null,null,null,null,null,null,null,null,null,null,null,null,null,null,null,null,null,null,null,null,null,null,null,null,null,null,null,null,null,null,null,null,null,null,null,null,null,null,null,null,null,null,null,null,null,null,null,null,null,null,null,null,null,null,null,null,null,null,null,null,null,null,null,null,null,null,null,null,null,null,null,null,null,null,null,null,null,null,null,null,null,null,null,null,null,null,null,null,null,null,null,null,null,null,null,null,null,null,null,null,null,null,null,null,null,null,null,null,null,null,null,null,null,null,null,null,null,null,null,null,null,null,null,null,null,null,null,null,null,null,null,null,null,null,null,null,null,null,null,null,null,null,null,null,null,null,null,null,null,null,null,null,null,null,null,null,null,null,null,null,null,null,null,null,null,null,null,null,null,null,null,null,null,null,null,null,null,null,null,null,null,null,null,null,null,null,null,null,null,null,null,null,null,null,null,null,null,null,null,null,null,null,null,null,null,null,null,null,null,null,null,null,null,0.14583333333333334,null,184,23,null,"июль",null,null,null,null,"Слезинский В.Е.,  управляющий участка",null,null,null,null,null,1]
["ГРАФИК",null,null,null,null,null,null,null,null,null,null,null,null,null,null,null,null,null,null,null,null,null,null,null,null,null,null,null,null,null,null,null,null,null,null,null,null,null,null,null,null,null,null,null,null,null,null,null,null,null,null,null,null,null,null,null,null,null,null,null,null,null,null,null,null,null,null,null,null,null,null,null,null,null,null,null,null,null,null,null,null,null,null,null,null,null,null,null,null,null,null,null,null,null,null,null,null,null,null,null,null,null,null,null,null,null,null,null,null,null,null,null,null,null,null,null,null,null,null,null,null,null,null,null,null,null,null,null,null,null,null,null,null,null,null,null,null,null,null,null,null,null,null,null,null,null,null,null,null,null,null,null,null,null,null,null,null,null,null,null,null,null,null,null,null,null,null,null,null,null,null,null,null,null,null,null,null,null,null,null,null,null,null,null,null,null,null,null,null,null,null,null,null,null,null,null,null,null,null,null,null,null,null,null,null,null,null,null,null,null,null,null,null,null,null,null,null,null,null,null,null,null,null,null,null,null,null,null,null,null,null,null,null,null,null,null,null,null,null,null,0.16666666666666666,null,168,21,null,"август",null,null,null,null,"Медведев А.П., слесарь-ремонтник",null,null,null,null,null,0.5]
["УЧЕТА ИСПОЛЬЗОВАНИЯ РАБОЧЕГО ВРЕМЕНИ ОБСЛУЖИВАЮЩЕГО ПЕРСОНАЛА",null,null,null,null,null,null,null,null,null,null,null,null,null,null,null,null,null,null,null,null,null,null,null,null,null,null,null,null,null,null,null,null,null,null,null,null,null,null,null,null,null,null,null,null,null,null,null,null,null,null,null,null,null,null,null,null,null,null,null,null,null,null,null,null,null,null,null,null,null,null,null,null,null,null,null,null,null,null,null,null,null,null,null,null,null,null,null,null,null,null,null,null,null,null,null,null,null,null,null,null,null,null,null,null,null,null,null,null,null,null,null,null,null,null,null,null,null,null,null,null,null,null,null,null,null,null,null,null,null,null,null,null,null,null,null,null,null,null,null,null,null,null,null,null,null,null,null,null,null,null,null,null,null,null,null,null,null,null,null,null,null,null,null,null,null,null,null,null,null,null,null,null,null,null,null,null,null,null,null,null,null,null,null,null,null,null,null,null,null,null,null,null,null,null,null,null,null,null,null,null,null,null,null,null,null,null,null,null,null,null,null,null,null,null,null,null,null,null,null,null,null,null,null,null,null,null,null,null,null,null,null,null,null,null,null,null,null,null,null,0.1875,null,176,22,null,null,null,null,null,null,"Береговой Г.П., электрик",null,null,null,null,null,0.25]
["2020-06-01",null,null,null,null,null,null,null,null,null,null,null,null,null,null,null,null,null,null,null,null,null,null,null,null,null,null,null,null,null,null,null,null,null,null,null,null,null,null,null,null,null,null,null,null,null,null,null,null,null,null,null,null,null,null,null,null,null,null,null,null,null,null,null,null,null,null,null,null,null,null,null,null,null,null,null,null,null,null,null,null,null,null,null,null,null,null,null,null,null,null,null,null,null,null,null,null,null,null,null,null,null,null,null,null,null,null,null,null,null,null,null,null,null,null,null,null,null,null,null,null,null,null,null,null,null,null,null,null,null,null,null,null,null,null,null,null,null,null,null,null,null,null,null,null,null,null,null,null,null,null,null,null,null,null,null,null,null,null,null,null,null,null,null,null,null,null,null,null,null,null,null,null,null,null,null,null,null,null,null,null,null,null,null,null,null,null,null,null,null,null,null,null,null,null,null,null,null,null,null,null,null,null,null,null,null,null,null,null,null,null,null,null,null,null,null,null,null,null,null,null,null,null,null,null,null,null,null,null,null,null,null,"июнь",null,null,null,null,null,null,null,0.20833333333333334,null,176,22,null,null,null,null,null,null,"Воротынцева В.Н., кассир билетный"]
[null,null,null,null,null,null,null,null,null,null,null,null,null,null,null,null,null,null,null,null,null,null,null,null,null,null,null,null,null,null,null,null,null,null,null,null,null,null,null,null,null,null,null,null,null,null,null,null,null,null,null,null,null,null,null,null,null,null,null,null,null,null,null,null,null,null,null,null,null,null,null,null,null,null,null,null,null,null,null,null,null,null,null,null,null,null,null,null,null,null,null,null,null,null,null,null,null,null,null,null,null,null,null,null,null,null,null,null,null,null,null,null,null,null,null,null,null,null,null,null,null,null,null,null,null,null,null,null,null,null,null,null,null,null,null,null,null,null,null,null,null,null,null,null,null,null,null,null,null,null,null,null,null,null,null,null,null,null,null,null,null,null,null,null,null,null,null,null,null,null,null,null,null,null,null,null,null,null,null,null,null,null,null,null,null,null,null,null,null,null,null,null,null,null,null,null,null,null,null,null,null,null,null,null,null,null,null,null,null,null,null,null,null,null,null,null,null,null,null,null,null,null,null,null,null,null,null,null,null,null,null,null,null,null,null,null,null,null,null,null,0.22916666666666666,null,159,20,null,null,null,null,null,null,"Окорочкова О.Т., кассир билетный"]
["№",null,null,null,null,"Фамилия Инициалы",null,null,null,null,null,null,null,null,null,null,null,null,null,null,null,null,null,"Ставка",null,null,null,null,1,null,null,null,null,null,2,null,null,null,null,null,3,null,null,null,null,null,4,null,null,null,null,null,5,null,null,null,null,null,6,null,null,null,null,null,7,null,null,null,null,null,8,null,null,null,null,null,9,null,null,null,null,null,10,null,null,null,null,null,11,null,null,null,null,null,12,null,null,null,null,null,13,null,null,null,null,null,14,null,null,null,null,null,15,null,null,null,null,null,16,null,null,null,null,null,17,null,null,null,null,null,18,null,null,null,null,null,19,null,null,null,null,null,20,null,null,null,null,null,21,null,null,null,null,null,22,null,null,null,null,null,23,null,null,null,null,null,24,null,null,null,null,null,25,null,null,null,null,null,26,null,null,null,null,null,27,null,null,null,null,null,28,null,null,null,null,null,{"$f":"IF(29<=$IE$7,29,\"-\")","v":29},null,null,null,null,null,{"$f":"IF(30<=$IE$7,30,\"-\")","v":30},null,null,null,null,null,{"$f":"IF(31<=$IE$7,31,\"-\")","v":"-"},null,null,null,null,null,"ВСЕГО",null,null,null,null,null,null,null,null,null,null,null,null,null,null,null,null,null,null,"по календарю",null,null,null,null,null,null,0.25,null,183,23,null,null,null,null,null,null,"Пермякова Т.М., контролёр-посадчик аттракциона"]
[null,null,null,null,null,null,null,null,null,null,null,null,null,null,null,null,null,null,null,null,null,null,null,null,null,null,null,null,null,null,null,null,null,null,null,null,null,null,null,null,null,null,null,null,null,null,null,null,null,null,null,null,null,null,null,null,null,null,null,null,null,null,null,null,null,null,null,null,null,null,null,null,null,null,null,null,null,null,null,null,null,null,null,null,null,null,null,null,null,null,null,null,null,null,null,null,null,null,null,null,null,null,null,null,null,null,null,null,null,null,null,null,null,null,null,null,null,null,null,null,null,null,null,null,null,null,null,null,null,null,null,null,null,null,null,null,null,null,null,null,null,null,null,null,null,null,null,null,null,null,null,null,null,null,null,null,null,null,null,null,null,null,null,null,null,null,null,null,null,null,null,null,null,null,null,null,null,null,null,null,null,null,null,null,null,null,null,null,null,null,null,null,null,null,null,null,null,null,null,null,null,null,null,null,null,null,null,null,null,null,null,null,null,null,"дней",null,null,null,null,null,null,null,null,null,null,null,null,null,null,null,null,null,"часов","дней","часов",null,null,null,null,null,0.27083333333333331,null,null,null,null,null,null,null,null,null,"Алексеева Р.И., котролёр-посадчик аттракциона"]
[null,null,null,null,null,null,null,null,null,null,null,null,null,null,null,null,null,null,null,null,null,null,null,null,null,null,null,null,{"$f":"IFERROR($A$17+AC19-1,\"-\")","v":"2020-06-01"},null,null,null,null,null,{"$f":"IFERROR($A$17+AI19-1,\"-\")","v":"2020-06-02"},null,null,null,null,null,{"$f":"IFERROR($A$17+AO19-1,\"-\")","v":"2020-06-03"},null,null,null,null,null,{"$f":"IFERROR($A$17+AU19-1,\"-\")","v":"2020-06-04"},null,null,null,null,null,{"$f":"IFERROR($A$17+BA19-1,\"-\")","v":"2020-06-05"},null,null,null,null,null,{"$f":"IFERROR($A$17+BG19-1,\"-\")","v":"2020-06-06"},null,null,null,null,null,{"$f":"IFERROR($A$17+BM19-1,\"-\")","v":"2020-06-07"},null,null,null,null,null,{"$f":"IFERROR($A$17+BS19-1,\"-\")","v":"2020-06-08"},null,null,null,null,null,{"$f":"IFERROR($A$17+BY19-1,\"-\")","v":"2020-06-09"},null,null,null,null,null,{"$f":"IFERROR($A$17+CE19-1,\"-\")","v":"2020-06-10"},null,null,null,null,null,{"$f":"IFERROR($A$17+CK19-1,\"-\")","v":"2020-06-11"},null,null,null,null,null,{"$f":"IFERROR($A$17+CQ19-1,\"-\")","v":"2020-06-12"},null,null,null,null,null,{"$f":"IFERROR($A$17+CW19-1,\"-\")","v":"2020-06-13"},null,null,null,null,null,{"$f":"IFERROR($A$17+DC19-1,\"-\")","v":"2020-06-14"},null,null,null,null,null,{"$f":"IFERROR($A$17+DI19-1,\"-\")","v":"2020-06-15"},null,null,null,null,null,{"$f":"IFERROR($A$17+DO19-1,\"-\")","v":"2020-06-16"},null,null,null,null,null,{"$f":"IFERROR($A$17+DU19-1,\"-\")","v":"2020-06-17"},null,null,null,null,null,{"$f":"IFERROR($A$17+EA19-1,\"-\")","v":"2020-06-18"},null,null,null,null,null,{"$f":"IFERROR($A$17+EG19-1,\"-\")","v":"2020-06-19"},null,null,null,null,null,{"$f":"IFERROR($A$17+EM19-1,\"-\")","v":"2020-06-20"},null,null,null,null,null,{"$f":"IFERROR($A$17+ES19-1,\"-\")","v":"2020-06-21"},null,null,null,null,null,{"$f":"IFERROR($A$17+EY19-1,\"-\")","v":"2020-06-22"},null,null,null,null,null,{"$f":"IFERROR($A$17+FE19-1,\"-\")","v":"2020-06-23"},null,null,null,null,null,{"$f":"IFERROR($A$17+FK19-1,\"-\")","v":"2020-06-24"},null,null,null,null,null,{"$f":"IFERROR($A$17+FQ19-1,\"-\")","v":"2020-06-25"},null,null,null,null,null,{"$f":"IFERROR($A$17+FW19-1,\"-\")","v":"2020-06-26"},null,null,null,null,null,{"$f":"IFERROR($A$17+GC19-1,\"-\")","v":"2020-06-27"},null,null,null,null,null,{"$f":"IFERROR($A$17+GI19-1,\"-\")","v":"2020-06-28"},null,null,null,null,null,{"$f":"IFERROR($A$17+GO19-1,\"-\")","v":"2020-06-29"},null,null,null,null,null,{"$f":"IFERROR($A$17+GU19-1,\"-\")","v":"2020-06-30"},null,null,null,null,null,{"$f":"IFERROR($A$17+HA19-1,\"-\")","v":"-"}]
[null,10,null,null,null,"Бутелин Ю.Н., сторож",null,null,null,null,null,null,null,null,null,null,null,null,null,null,null,null,null,null,1,null,null,null,0.70833333333333337,null,null,null,null,null,0,null,null,null,null,null,null,null,null,null,null,null,0.70833333333333337,null,null,null,null,null,0,null,null,null,null,null,null,null,null,null,null,null,0.70833333333333337,null,null,null,null,null,0,null,null,null,null,null,null,null,null,null,null,null,0.66666666666666663,null,null,null,null,null,0,null,null,null,null,null,null,null,null,null,null,null,0.66666666666666663,null,null,null,null,null,0,null,null,null,null,null,null,null,null,null,null,null,0.66666666666666663,null,null,null,null,null,0,null,null,null,null,null,null,null,null,null,null,null,0.66666666666666663,null,null,null,null,null,0,null,null,null,null,null,null,null,null,null,null,null,0.66666666666666663,null,null,null,null,null,0,null,null,null,null,null,null,null,null,null,null,null,0.66666666666666663,null,null,null,null,null,0,null,null,null,null,null,null,null,null,null,null,null,0.66666666666666663,null,null,null,null,null,0,null,null,null,null,null,null,null,null,null,null,null,null,null,null,null,null,null,null,null,null,null,null,null,null,null,null,null,null,null,null,null,null,null,null,null,{"$f":"SUM(IF(ISNUMBER(AC22:HF22),AC23:HF23-AC22:HF22+(AC23:HF23<AC22:HF22),))*24","v":166.99999999999997},{"$f":"VLOOKUP($HY$17,'[1]производственный календарь '!$B$2:$D$13,3,0)","v":21},{"$f":"VLOOKUP($HY$17,'[1]производственный календарь '!$B$2:$D$13,2,0)","v":167}]
[null,null,null,null,null,null,null,null,null,null,null,null,null,null,null,null,null,null,null,null,null,null,null,null,null,null,null,null,0,null,null,null,null,null,0.375,null,null,null,null,null,null,null,null,null,null,null,0,null,null,null,null,null,0.375,null,null,null,null,null,null,null,null,null,null,null,0,null,null,null,null,null,0.375,null,null,null,null,null,null,null,null,null,null,null,0,null,null,null,null,null,0.375,null,null,null,null,null,null,null,null,null,null,null,0,null,null,null,null,null,0.375,null,null,null,null,null,null,null,null,null,null,null,0,null,null,null,null,null,0.375,null,null,null,null,null,null,null,null,null,null,null,0,null,null,null,null,null,0.375,null,null,null,null,null,null,null,null,null,null,null,0,null,null,null,null,null,0.375,null,null,null,null,null,null,null,null,null,null,null,0,null,null,null,null,null,0.375,null,null,null,null,null,null,null,null,null,null,null,0,null,null,null,null,null,0.375,null,null,null,null,null,null,null,null,null,null,null,null,null,null,null,null,null,{"$f":"COUNT(AC23:HF23)","v":20}]
[null,null,null,null,null,null,null,null,null,null,null,null,null,null,null,null,null,null,null,null,null,null,null,null,null,null,null,null,{"$f":"IFERROR(AC23-AC22,0)","v":-0.70833333333333337},null,null,null,null,null,{"$f":"IFERROR(AI23-AI22,0)","v":"09:00:00"},null,null,null,null,null,{"$f":"IFERROR(AO23-AO22,0)","v":"00:00:00"},null,null,null,null,null,{"$f":"IFERROR(AU23-AU22,0)","v":-0.70833333333333337},null,null,null,null,null,{"$f":"IFERROR(BA23-BA22,0)","v":"09:00:00"},null,null,null,null,null,{"$f":"IFERROR(BG23-BG22,0)","v":"00:00:00"},null,null,null,null,null,{"$f":"IFERROR(BM23-BM22,0)","v":-0.70833333333333337},null,null,null,null,null,{"$f":"IFERROR(BS23-BS22,0)","v":"09:00:00"},null,null,null,null,null,{"$f":"IFERROR(BY23-BY22,0)","v":"00:00:00"},null,null,null,null,null,{"$f":"IFERROR(CE23-CE22,0)","v":-0.66666666666666663},null,null,null,null,null,{"$f":"IFERROR(CK23-CK22,0)","v":"09:00:00"},null,null,null,null,null,{"$f":"IFERROR(CQ23-CQ22,0)","v":"00:00:00"},null,null,null,null,null,{"$f":"IFERROR(CW23-CW22,0)","v":-0.66666666666666663},null,null,null,null,null,{"$f":"IFERROR(DC23-DC22,0)","v":"09:00:00"},null,null,null,null,null,{"$f":"IFERROR(DI23-DI22,0)","v":"00:00:00"},null,null,null,null,null,{"$f":"IFERROR(DO23-DO22,0)","v":-0.66666666666666663},null,null,null,null,null,{"$f":"IFERROR(DU23-DU22,0)","v":"09:00:00"},null,null,null,null,null,{"$f":"IFERROR(EA23-EA22,0)","v":"00:00:00"},null,null,null,null,null,{"$f":"IFERROR(EG23-EG22,0)","v":-0.66666666666666663},null,null,null,null,null,{"$f":"IFERROR(EM23-EM22,0)","v":"09:00:00"},null,null,null,null,null,{"$f":"IFERROR(ES23-ES22,0)","v":"00:00:00"},null,null,null,null,null,{"$f":"IFERROR(EY23-EY22,0)","v":-0.66666666666666663},null,null,null,null,null,{"$f":"IFERROR(FE23-FE22,0)","v":"09:00:00"},null,null,null,null,null,{"$f":"IFERROR(FK23-FK22,0)","v":"00:00:00"},null,null,null,null,null,{"$f":"IFERROR(FQ23-FQ22,0)","v":-0.66666666666666663},null,null,null,null,null,{"$f":"IFERROR(FW23-FW22,0)","v":"09:00:00"},null,null,null,null,null,{"$f":"IFERROR(GC23-GC22,0)","v":"00:00:00"},null,null,null,null,null,{"$f":"IFERROR(GI23-GI22,0)","v":-0.66666666666666663},null,null,null,null,null,{"$f":"IFERROR(GO23-GO22,0)","v":"09:00:00"},null,null,null,null,null,{"$f":"IFERROR(GU23-GU22,0)","v":"00:00:00"},null,null,null,null,null,{"$f":"IFERROR(HA23-HA22,0)","v":"00:00:00"},null,null,null,null,null,null,null,null,null,null,null,null,null,null,null,null,null,null,null,null,null,null,null,{"$f":"SUM(AC24:HE24)","v":-3.0416666666666656}]
[null,null,null,null,null,null,null,null,null,null,null,null,null,null,null,null,null,null,null,null,null,null,null,null,"пр.",null,null,null,null,null,null,null,null,null,null,null,null,null,null,null,null,null,null,null,null,null,null,null,null,null,null,null,null,null,null,null,null,null,null,null,null,null,null,null,null,null,null,null,null,null,null,null,null,null,null,null,9,null,null,null,null,null,null,null,null,null,null,null,null,null,null,null,null,null,null,null,null,null,null,null,null,null,null,null,null,null,null,null,null,null,null,null,null,null,null,null,null,null,null,null,null,null,null,null,null,null,null,null,null,null,null,null,null,null,null,null,null,null,null,null,null,null,null,null,null,null,null,null,null,null,null,null,null,null,null,null,null,null,null,null,null,null,null,null,null,null,null,null,null,null,null,null,null,null,null,null,null,null,null,null,null,null,null,null,null,null,null,null,null,null,null,null,null,null,null,null,null,null,null,null,null,null,null,null,null,null,null,null,null,null,null,null,null,null,null,null,null,null,null,null,null,null,null,null,null,null,null,null,null,null,null,null,{"$f":"SUM(AC25:HF25)","v":9}]
[null,null,null,null,null,null,null,null,null,null,null,null,null,null,null,null,null,null,null,null,null,null,null,null,"ночь",null,null,null,{"$f":"(MIN(AC23,6/24)-MIN(AC22,6/24)+MAX(AC23,22/24)-MAX(AC22,22/24))*24+(AC23<AC22)*8","v":2},null,null,null,null,null,{"$f":"(MIN(AI23,6/24)-MIN(AI22,6/24)+MAX(AI23,22/24)-MAX(AI22,22/24))*24+(AI23<AI22)*8","v":5.9999999999999973},null,null,null,null,null,{"$f":"(MIN(AO23,6/24)-MIN(AO22,6/24)+MAX(AO23,22/24)-MAX(AO22,22/24))*24+(AO23<AO22)*8","v":0},null,null,null,null,null,{"$f":"(MIN(AU23,6/24)-MIN(AU22,6/24)+MAX(AU23,22/24)-MAX(AU22,22/24))*24+(AU23<AU22)*8","v":2},null,null,null,null,null,{"$f":"(MIN(BA23,6/24)-MIN(BA22,6/24)+MAX(BA23,22/24)-MAX(BA22,22/24))*24+(BA23<BA22)*8","v":5.9999999999999973},null,null,null,null,null,{"$f":"(MIN(BG23,6/24)-MIN(BG22,6/24)+MAX(BG23,22/24)-MAX(BG22,22/24))*24+(BG23<BG22)*8","v":0},null,null,null,null,null,{"$f":"(MIN(BM23,6/24)-MIN(BM22,6/24)+MAX(BM23,22/24)-MAX(BM22,22/24))*24+(BM23<BM22)*8","v":2},null,null,null,null,null,{"$f":"(MIN(BS23,6/24)-MIN(BS22,6/24)+MAX(BS23,22/24)-MAX(BS22,22/24))*24+(BS23<BS22)*8","v":5.9999999999999973},null,null,null,null,null,{"$f":"(MIN(BY23,6/24)-MIN(BY22,6/24)+MAX(BY23,22/24)-MAX(BY22,22/24))*24+(BY23<BY22)*8","v":0},null,null,null,null,null,{"$f":"(MIN(CE23,6/24)-MIN(CE22,6/24)+MAX(CE23,22/24)-MAX(CE22,22/24))*24+(CE23<CE22)*8","v":2},null,null,null,null,null,{"$f":"(MIN(CK23,6/24)-MIN(CK22,6/24)+MAX(CK23,22/24)-MAX(CK22,22/24))*24+(CK23<CK22)*8","v":5.9999999999999973},null,null,null,null,null,{"$f":"(MIN(CQ23,6/24)-MIN(CQ22,6/24)+MAX(CQ23,22/24)-MAX(CQ22,22/24))*24+(CQ23<CQ22)*8","v":0},null,null,null,null,null,{"$f":"(MIN(CW23,6/24)-MIN(CW22,6/24)+MAX(CW23,22/24)-MAX(CW22,22/24))*24+(CW23<CW22)*8","v":2},null,null,null,null,null,{"$f":"(MIN(DC23,6/24)-MIN(DC22,6/24)+MAX(DC23,22/24)-MAX(DC22,22/24))*24+(DC23<DC22)*8","v":5.9999999999999973},null,null,null,null,null,{"$f":"(MIN(DI23,6/24)-MIN(DI22,6/24)+MAX(DI23,22/24)-MAX(DI22,22/24))*24+(DI23<DI22)*8","v":0},null,null,null,null,null,{"$f":"(MIN(DO23,6/24)-MIN(DO22,6/24)+MAX(DO23,22/24)-MAX(DO22,22/24))*24+(DO23<DO22)*8","v":2},null,null,null,null,null,{"$f":"(MIN(DU23,6/24)-MIN(DU22,6/24)+MAX(DU23,22/24)-MAX(DU22,22/24))*24+(DU23<DU22)*8","v":5.9999999999999973},null,null,null,null,null,{"$f":"(MIN(EA23,6/24)-MIN(EA22,6/24)+MAX(EA23,22/24)-MAX(EA22,22/24))*24+(EA23<EA22)*8","v":0},null,null,null,null,null,{"$f":"(MIN(EG23,6/24)-MIN(EG22,6/24)+MAX(EG23,22/24)-MAX(EG22,22/24))*24+(EG23<EG22)*8","v":2},null,null,null,null,null,{"$f":"(MIN(EM23,6/24)-MIN(EM22,6/24)+MAX(EM23,22/24)-MAX(EM22,22/24))*24+(EM23<EM22)*8","v":5.9999999999999973},null,null,null,null,null,{"$f":"(MIN(ES23,6/24)-MIN(ES22,6/24)+MAX(ES23,22/24)-MAX(ES22,22/24))*24+(ES23<ES22)*8","v":0},null,null,null,null,null,{"$f":"(MIN(EY23,6/24)-MIN(EY22,6/24)+MAX(EY23,22/24)-MAX(EY22,22/24))*24+(EY23<EY22)*8","v":2},null,null,null,null,null,{"$f":"(MIN(FE23,6/24)-MIN(FE22,6/24)+MAX(FE23,22/24)-MAX(FE22,22/24))*24+(FE23<FE22)*8","v":5.9999999999999973},null,null,null,null,null,{"$f":"(MIN(FK23,6/24)-MIN(FK22,6/24)+MAX(FK23,22/24)-MAX(FK22,22/24))*24+(FK23<FK22)*8","v":0},null,null,null,null,null,{"$f":"(MIN(FQ23,6/24)-MIN(FQ22,6/24)+MAX(FQ23,22/24)-MAX(FQ22,22/24))*24+(FQ23<FQ22)*8","v":2},null,null,null,null,null,{"$f":"(MIN(FW23,6/24)-MIN(FW22,6/24)+MAX(FW23,22/24)-MAX(FW22,22/24))*24+(FW23<FW22)*8","v":5.9999999999999973},null,null,null,null,null,{"$f":"(MIN(GC23,6/24)-MIN(GC22,6/24)+MAX(GC23,22/24)-MAX(GC22,22/24))*24+(GC23<GC22)*8","v":0},null,null,null,null,null,{"$f":"(MIN(GI23,6/24)-MIN(GI22,6/24)+MAX(GI23,22/24)-MAX(GI22,22/24))*24+(GI23<GI22)*8","v":2},null,null,null,null,null,{"$f":"(MIN(GO23,6/24)-MIN(GO22,6/24)+MAX(GO23,22/24)-MAX(GO22,22/24))*24+(GO23<GO22)*8","v":5.9999999999999973},null,null,null,null,null,{"$f":"(MIN(GU23,6/24)-MIN(GU22,6/24)+MAX(GU23,22/24)-MAX(GU22,22/24))*24+(GU23<GU22)*8","v":0},null,null,null,null,null,{"$f":"(MIN(HA23,6/24)-MIN(HA22,6/24)+MAX(HA23,22/24)-MAX(HA22,22/24))*24+(HA23<HA22)*8","v":0},null,null,null,null,null,null,null,null,null,null,null,null,null,null,null,null,null,null,null,null,null,null,null,{"$f":"SUM(AC26:HF27)","v":79.999999999999986}]
[]
[]
[]
[]
[]
[null,null,null,null,null,null,null,null,null,null,null,null,null,null,null,null,null,null,null,null,null,null,null,null,null,null,null,null,null,null,null,null,null,null,null,null,null,null,null,null,null,null,null,null,null,null,null,null,null,null,null,null,null,null,null,null,null,null,null,null,null,null,null,null,null,null,null,null,null,null,null,null,null,null,null,null,null,null,null,null,null,null,null,null,null,null,null,null,null,null,null,null,null,null,null,null,null,null,null,null,null,null,null,null,null,null,null,null,null,null,null,null,null,null,null,null,null,null,null,null,null,"прошу откорректировать  формулу, чтобы она выдавала правильный результат"]
[]
[]
[]
[]
[null,null,null,null,null,null,null,null,null,null,null,null,null,null,null,null,null,null,null,null,null,null,null,null,null,null,null,null,null,null,null,null,null,null,null,null,null,null,null,null,null,null,null,null,null,null,null,null,null,null,null,null,null,null,null,null,null,null,null,null,null,null,null,null,null,null,null,null,null,null,null,null,null,null,null,null,null,null,null,null,null,null,null,null,null,null,null,null,null,"здесь должно быть 7:00"]